fUSD/lending_fUSD_20260514
["ID","MTS","AMOUNT","RATE_DAILY","PERIOD"]
[422244990,1778761824000,151.78,8.74e-05,2]
[422245023,1778761832000,-198.43237317,0.00010101,2]
[422245012,1778761832000,-178.80820696,0.00010071,2]
[422245010,1778761832000,-150.0,0.00010063,2]
[422245007,1778761832000,-182.8581337,0.00010054,2]
[422245008,1778761832000,-150.0,0.00010055,2]
[422245004,1778761832000,-163.37,0.00010041,2]
[422245006,1778761832000,-151.0,0.00010054,2]
[422245005,1778761832000,-150.0,0.00010043,2]
[422245003,1778761832000,-150.0,0.00010037,2]
[422245002,1778761832000,-150.0,0.00010032,2]
[422245000,1778761832000,-1516.02,0.00010027,2]
[422245009,1778761832000,-150.0,0.00010056,2]
[422244998,1778761832000,-13.2722345,0.00010023,2]
[422244999,1778761832000,-150.0,0.00010025,2]
[422244997,1778761832000,-236.7277655,0.00010023,2]
[422244996,1778761832000,-341.28977802,0.00010022,2]
[422244995,1778761832000,-150.0,0.00010021,2]
[422245011,1778761832000,-150.0,0.00010066,2]
[422245001,1778761832000,-150.0,0.00010031,2]
[422245025,1778761832000,-150.0,0.00010101,2]
[422245039,1778761832000,-32616.33919118,0.00010111,2]
[422245013,1778761832000,-150.0,0.00010075,2]
[422245052,1778761832000,-995.81357494,0.00010111,2]
[422245047,1778761832000,-15764.65412918,0.00010111,2]
[422245049,1778761832000,-112241.86029897,0.00010111,2]
[422245051,1778761832000,-500.0,0.0001011,2]
[422245048,1778761832000,-22169.50335632,0.00010111,2]
[422245035,1778761832000,-500.0,0.0001011,2]
[422245050,1778761832000,-651.4767907,0.00010111,2]
[422245031,1778761832000,-500.0,0.0001011,2]
[422245033,1778761832000,-554.30372875,0.0001011,2]
[422245046,1778761832000,-408487.05685958,0.00010111,2]
[422245044,1778761832000,-1108.61757386,0.00010111,2]
[422245037,1778761832000,-500.0,0.0001011,2]
[422245029,1778761832000,-500.0,0.0001011,2]
[422245017,1778761832000,-150.0,0.00010087,2]
[422245018,1778761832000,-150.0,0.00010089,2]
[422245027,1778761832000,-187.95974966,0.0001011,2]
[422245015,1778761832000,-150.0,0.00010078,2]
[422245042,1778761832000,-443.39958113,0.00010111,2]
[422245045,1778761832000,-281.85872234,0.0001011,2]
[422245020,1778761832000,-150.0,0.00010101,2]
[422245063,1778761838000,-320.94092248,0.0001011,2]
[422245056,1778761838000,-199.75022145,0.0001011,2]
[422245060,1778761838000,-319.20770732,0.0001011,2]
[422245059,1778761838000,-180.79229268,0.0001011,2]
[422245057,1778761838000,-300.24977855,0.0001011,2]
[422245061,1778761838000,-500.0,0.0001011,2]
[422245058,1778761838000,-162.72485431,0.0001011,2]
[422245062,1778761838000,-500.0,0.0001011,2]
[422245055,1778761838000,-308.65336528,0.0001011,2]
[422245064,1778761838000,-179.05907752,0.0001011,2]
[422245066,1778761838000,-322.69930567,0.0001011,2]
[422245067,1778761838000,-84.62354819,0.0001011,2]
[422245072,1778761838000,-500.0,0.0001011,2]
[422245069,1778761838000,-500.0,0.0001011,2]
[422245071,1778761838000,-500.0,0.0001011,2]
[422245070,1778761838000,-500.0,0.0001011,2]
[422245068,1778761838000,-500.0,0.0001011,2]
[422245074,1778761838000,-289.6209169,0.0001011,2]
[422245073,1778761838000,-500.0,0.0001011,2]
[422245065,1778761838000,-500.0,0.0001011,2]
[422245138,1778761840000,-1887040.43712312,0.00010111,2]
[422245141,1778761840000,-150.0,0.00010119,2]
[422245150,1778761840000,-150.0,0.00010139,2]
[422245151,1778761840000,-150.0,0.00010146,2]
[422245152,1778761840000,-150.0,0.00010158,2]
[422245140,1778761840000,-150.0,0.00010112,2]
[422245139,1778761840000,-151.0,0.00010111,2]
[422245149,1778761840000,-150.0,0.00010138,2]
[422245135,1778761840000,-9278.96507076,0.00010111,2]
[422245134,1778761840000,-500.0,0.0001011,2]
[422245136,1778761840000,-6746.22981931,0.00010111,2]
[422245132,1778761840000,-500.0,0.0001011,2]
[422245133,1778761840000,-500.0,0.0001011,2]
[422245137,1778761840000,-2455.64663095,0.00010111,2]
[422245131,1778761840000,-500.0,0.0001011,2]
[422245129,1778761840000,-500.0,0.0001011,2]
[422245127,1778761840000,-176.43734595,0.0001011,2]
[422245142,1778761840000,-150.0,0.00010124,2]
[422245130,1778761840000,-500.0,0.0001011,2]
[422245147,1778761840000,-150.0,0.00010127,2]
[422245128,1778761840000,-500.0,0.0001011,2]
[422245144,1778761840000,-300.0,0.00010125,2]
[422245146,1778761840000,-150.0,0.00010125,2]
[422245169,1778761840000,-824.16038483,0.00010211,2]
[422245167,1778761840000,-6799.762,0.00010211,2]
[422245165,1778761840000,-178.80820696,0.0001021,2]
[422245166,1778761840000,-21001.2094,0.00010211,2]
[422245164,1778761840000,-169.692,0.0001021,2]
[422245161,1778761840000,-150.0,0.00010204,2]
[422245163,1778761840000,-1202.96,0.0001021,2]
[422245162,1778761840000,-150.0,0.00010208,2]
[422245157,1778761840000,-150.0,0.00010181,2]
[422245168,1778761840000,-2500.0,0.00010211,2]
[422245160,1778761840000,-150.0,0.00010194,2]
[422245158,1778761840000,-150.0,0.00010188,2]
[422245155,1778761840000,-150.0,0.00010171,2]
[422245156,1778761840000,-150.0,0.00010178,2]
[422245154,1778761840000,-150.0,0.00010169,2]
[422245153,1778761840000,-150.0,0.00010164,2]
[422245145,1778761840000,-1200.0,0.00010125,2]
[422245148,1778761840000,-150.0,0.00010135,2]
[422245143,1778761840000,-150.0,0.00010125,2]
[422245159,1778761840000,-150.0,0.00010192,2]
[422245190,1778761841000,-150.0,0.00010272,2]
[422245183,1778761841000,-150.0,0.00010253,2]
[422245182,1778761841000,-150.0,0.00010249,2]
[422245187,1778761841000,-150.0,0.00010261,2]
[422245185,1778761841000,-161.58832768,0.00010259,2]
[422245201,1778761841000,-11442.1068,0.00010311,2]
[422245204,1778761841000,-563.54,0.00010311,2]
[422245199,1778761841000,-150.0,0.00010307,2]
[422245193,1778761841000,-1000.0,0.00010287,2]
[422245206,1778761841000,-150.0,0.00010329,2]
[422245180,1778761841000,-150.0,0.00010238,2]
[422245194,1778761841000,-150.0,0.00010289,2]
[422245184,1778761841000,-150.0,0.00010254,2]
[422245172,1778761841000,-1038.49058769,0.00010211,2]
[422245191,1778761841000,-1516.02,0.00010278,2]
[422245188,1778761841000,-150.0,0.00010264,2]
[422245181,1778761841000,-150.0,0.00010238,2]
[422245189,1778761841000,-150.0,0.00010264,2]
[422245178,1778761841000,-262.0,0.00010227,2]
[422245174,1778761841000,-2466.66666668,0.00010211,2]
[422245173,1778761841000,-1277.21621014,0.00010211,2]
[422245175,1778761841000,-150.0,0.00010215,2]
[422245171,1778761841000,-155.2536542,0.00010211,2]
[422245202,1778761841000,-204.5796,0.00010311,2]
[422245170,1778761841000,-285.73352573,0.00010211,2]
[422245177,1778761841000,-150.0,0.00010227,2]
[422245176,1778761841000,-150.0,0.00010216,2]
[422245192,1778761841000,-150.0,0.00010284,2]
[422245205,1778761841000,-150.0,0.00010318,2]
[422245197,1778761841000,-150.0,0.00010295,2]
[422245198,1778761841000,-150.0,0.00010297,2]
[422245232,1778761841000,-570902.95188499,0.00010434,2]
[422245196,1778761841000,-150.0,0.00010292,2]
[422245233,1778761841000,-888.31490362,0.00010434,2]
[422245231,1778761841000,-859.8368472,0.00010434,2]
[422245222,1778761841000,-150.0,0.00010407,2]
[422245227,1778761841000,-150.0,0.00010421,2]
[422245228,1778761841000,-150.0,0.0001043,2]
[422245218,1778761841000,-150.0,0.00010387,2]
[422245224,1778761841000,-2831.98093941,0.00010412,2]
[422245225,1778761841000,-2797.75145207,0.00010412,2]
[422245223,1778761841000,-150.0,0.0001041,2]
[422245226,1778761841000,-5863.59398004,0.00010412,2]
[422245220,1778761841000,-150.0,0.00010398,2]
[422245230,1778761841000,-52648.6202687,0.00010434,2]
[422245219,1778761841000,-150.0,0.0001039,2]
[422245221,1778761841000,-150.0,0.00010402,2]
[422245216,1778761841000,-150.0,0.00010375,2]
[422245203,1778761841000,-1500000.0,0.00010311,2]
[422245229,1778761841000,-150.0,0.00010432,2]
[422245208,1778761841000,-150.0,0.00010333,2]
[422245207,1778761841000,-150.0,0.00010331,2]
[422245210,1778761841000,-150.0,0.00010341,2]
[422245209,1778761841000,-150.0,0.00010339,2]
[422245200,1778761841000,-500.0,0.0001031,2]
[422245213,1778761841000,-150.0,0.00010356,2]
[422245214,1778761841000,-150.0,0.00010364,2]
[422245211,1778761841000,-150.0,0.00010341,2]
[422245215,1778761841000,-150.0,0.00010369,2]
[422245212,1778761841000,-150.0,0.00010352,2]
[422245217,1778761841000,-150.0,0.00010386,2]
[422245256,1778761843000,-150.0,0.00010445,2]
[422245268,1778761843000,-150.0,0.00010512,2]
[422245258,1778761843000,-150.0,0.00010467,2]
[422245267,1778761843000,-710.50654426,0.00010511,2]
[422245259,1778761843000,-150.0,0.00010472,2]
[422245260,1778761843000,-150.0,0.00010475,2]
[422245266,1778761843000,-952.90909367,0.00010511,2]
[422245261,1778761843000,-150.0,0.00010478,2]
[422245263,1778761843000,-150.0,0.0001049,2]
[422245265,1778761843000,-150.0,0.00010501,2]
[422245264,1778761843000,-150.0,0.00010491,2]
[422245280,1778761843000,-150.0,0.0001056,2]
[422245271,1778761843000,-150.0,0.00010524,2]
[422245257,1778761843000,-150.0,0.00010455,2]
[422245262,1778761843000,-150.0,0.00010484,2]
[422245251,1778761843000,-151.0,0.00010434,2]
[422245241,1778761843000,-44257.7954337,0.00010434,2]
[422245252,1778761843000,-151.0,0.00010434,2]
[422245277,1778761843000,-150.0,0.00010541,2]
[422245239,1778761843000,-91056.99830989,0.00010434,2]
[422245240,1778761843000,-3150.5407407,0.00010434,2]
[422245242,1778761843000,-151.0,0.00010434,2]
[422245243,1778761843000,-730.109977,0.00010434,2]
[422245245,1778761843000,-730.109977,0.00010434,2]
[422245253,1778761843000,-151.0,0.00010434,2]
[422245244,1778761843000,-730.109977,0.00010434,2]
[422245247,1778761843000,-1049.21258,0.00010434,2]
[422245249,1778761843000,-1049.21258,0.00010434,2]
[422245246,1778761843000,-730.109977,0.00010434,2]
[422245248,1778761843000,-1049.21258,0.00010434,2]
[422245250,1778761843000,-1049.21258,0.00010434,2]
[422245254,1778761843000,-150.0,0.0001044,2]
[422245255,1778761843000,-150.0,0.00010444,2]
[422245274,1778761843000,-150.0,0.00010541,2]
[422245293,1778761843000,-150.0,0.00010637,2]
[422245273,1778761843000,-150.0,0.00010535,2]
[422245305,1778761843000,-150.0,0.00010696,2]
[422245299,1778761843000,-150.0,0.00010673,2]
[422245303,1778761843000,-150.0,0.00010692,2]
[422245296,1778761843000,-150.0,0.0001065,2]
[422245301,1778761843000,-150.0,0.0001068,2]
[422245298,1778761843000,-150.0,0.00010661,2]
[422245294,1778761843000,-150.0,0.00010638,2]
[422245304,1778761843000,-150.0,0.00010696,2]
[422245295,1778761843000,-150.0,0.00010642,2]
[422245297,1778761843000,-150.0,0.00010652,2]
[422245300,1778761843000,-150.0,0.00010675,2]
[422245306,1778761843000,-151.0,0.00010697,2]
[422245307,1778761843000,-151.0,0.00010697,2]
[422245308,1778761843000,-76586.99601895,0.000107,2]
[422245302,1778761843000,-150.0,0.00010684,2]
[422245289,1778761843000,-150.0,0.00010608,2]
[422245290,1778761843000,-150.0,0.0001061,2]
[422245286,1778761843000,-150.0,0.00010593,2]
[422245269,1778761843000,-150.0,0.00010519,2]
[422245270,1778761843000,-150.0,0.00010522,2]
[422245279,1778761843000,-150.0,0.00010558,2]
[422245276,1778761843000,-150.0,0.00010541,2]
[422245272,1778761843000,-1516.02,0.00010529,2]
[422245278,1778761843000,-150.0,0.00010547,2]
[422245282,1778761843000,-150.0,0.0001057,2]
[422245284,1778761843000,-150.0,0.00010581,2]
[422245281,1778761843000,-150.0,0.00010563,2]
[422245283,1778761843000,-223.18,0.00010579,2]
[422245285,1778761843000,-150.0,0.00010592,2]
[422245292,1778761843000,-150.0,0.00010627,2]
[422245291,1778761843000,-150.0,0.00010615,2]
[422245288,1778761843000,-150.0,0.00010604,2]
[422245287,1778761843000,-150.0,0.00010598,2]
[422245275,1778761843000,-150.0,0.00010541,2]
[422245309,1778761844000,-1046.90495025,0.000107,2]
[422245310,1778761844000,-993.12,0.000107,2]
[422245311,1778761844000,-645.728035,0.000107,2]
[422245312,1778761844000,-345.3580558,0.000107,2]
[422245314,1778761846000,-511.0,0.00010443,2]
[422245338,1778761847000,-11637.74849936,0.000107,2]
[422245337,1778761847000,-500.0,0.0001011,2]
[422245336,1778761847000,-14108.37602761,0.000107,2]
[422245335,1778761847000,-47392.29093297,0.000107,2]
[422245334,1778761847000,-9441.43213659,0.00010443,2]
[422245333,1778761847000,-5877.33500001,0.00010443,2]
[422245340,1778761875000,14668.23,9.913e-05,2]
[422245339,1778761875000,10000.0,0.00027397,120]
[422245341,1778761981000,171.67,9.904e-05,2]
[422245342,1778762009000,169.692,9.909e-05,2]
[422245343,1778762009000,1202.96,9.909e-05,2]
[422245344,1778762026000,287.000001,0.00027397,120]
[422245345,1778762032000,204.5796,9.927e-05,2]
[422245346,1778762033000,700.0,0.00027397,120]
[422245347,1778762049000,209.82449599,0.00027397,120]
[422245349,1778762063000,330.0,0.00010712,3]
[422245348,1778762063000,645.8340207,0.0001001,2]
[422245350,1778762080000,186.72,9.697e-05,2]
[422245351,1778762094000,1010.43,9.697e-05,2]
[422245352,1778762149000,383.72333413,0.0001001,2]
[422245365,1778762166000,-500.0,0.0001011,2]
[422245363,1778762166000,-247.30110564,0.0001011,2]
[422245362,1778762166000,-500.0,0.0001011,2]
[422245359,1778762166000,-500.0,0.0001011,2]
[422245361,1778762166000,-238.01261012,0.0001011,2]
[422245357,1778762166000,-187.0,0.00010109,2]
[422245354,1778762166000,-1038.49058769,0.00010109,2]
[422245356,1778762166000,-300.0,0.00010109,2]
[422245355,1778762166000,-1200.0,0.00010109,2]
[422245353,1778762166000,-161.58832768,0.0001006,2]
[422245364,1778762166000,-500.0,0.0001011,2]
[422245358,1778762166000,-150.0,0.00010109,2]
[422245367,1778762166000,-500.0,0.0001011,2]
[422245360,1778762166000,-500.0,0.0001011,2]
[422245368,1778762166000,-500.0,0.0001011,2]
[422245377,1778762166000,-500.0,0.0001011,2]
[422245379,1778762166000,-500.0,0.0001011,2]
[422245376,1778762166000,-500.0,0.0001011,2]
[422245375,1778762166000,-500.0,0.0001011,2]
[422245374,1778762166000,-500.0,0.0001011,2]
[422245378,1778762166000,-296.60582629,0.0001011,2]
[422245373,1778762166000,-500.0,0.0001011,2]
[422245371,1778762166000,-500.0,0.0001011,2]
[422245372,1778762166000,-500.0,0.0001011,2]
[422245370,1778762166000,-500.0,0.0001011,2]
[422245369,1778762166000,-500.0,0.0001011,2]
[422245380,1778762166000,-471.00154258,0.0001011,2]
[422245366,1778762166000,-500.0,0.0001011,2]
[422245381,1778762170000,200.0,9.735e-05,2]
[422245382,1778762183000,2500.0,0.00010011,2]
[422245383,1778762207000,5000.0,0.00010011,2]
[422245384,1778762340000,2500.0,0.00010011,2]
[422245385,1778762357000,1877.0,0.0001183,5]
[422245387,1778762359000,8.45809755,0.00010712,3]
[422245386,1778762359000,321.54190245,0.00010712,3]
[422245388,1778762366000,5000.0,0.00010011,2]
[422245389,1778762396000,6799.762,0.00010011,2]
[422245390,1778762416000,6355.087057,0.0001,2]
[422245391,1778762423000,151.0,0.00010011,2]
[422245392,1778762425000,216.482437,9.977e-05,2]
[422245393,1778762432000,2000.0,9.583e-05,2]
[422245394,1778762472000,152.0,0.000133,7]
[422245395,1778762497000,2500.0,0.00010011,2]
[422245396,1778762527000,5000.0,0.00010011,2]
[422245397,1778762552000,537.6869,0.00010011,2]
[422245398,1778762576000,151.0,0.00010011,2]
[422245399,1778762592000,820.64,9.582e-05,2]
[422245400,1778762600000,4059.02,9.582e-05,2]
[422245401,1778762609000,962.368,9.909e-05,2]
[422245402,1778762609000,169.692,9.909e-05,2]
[422245403,1778762620000,330.0,0.00010712,3]
[422245404,1778762624000,155.9,4.887e-05,2]
[422245408,1778762625000,155.9,7.235e-05,2]
[422245407,1778762625000,155.9,6.648e-05,2]
[422245406,1778762625000,155.9,6.061e-05,2]
[422245405,1778762625000,155.9,5.474e-05,2]
[422245409,1778762626000,155.9,7.821e-05,2]
[422245410,1778762626000,155.9,8.408e-05,2]
[422245411,1778762626000,155.9,8.995e-05,2]
[422245412,1778762626000,155.9,9.582e-05,2]
[422245413,1778762631000,21001.2094,0.00010011,2]
[422245414,1778762637000,2500.0,0.00010011,2]
[422245415,1778762684000,5000.0,0.00010011,2]
[422245416,1778762743000,330.0,0.00010712,3]
[422245417,1778762800000,418.2983,0.00010011,2]
[422245418,1778762825000,5000.0,0.00010011,2]
[422245419,1778762826000,500.0,9.677e-05,2]
[422245420,1778762849000,500.0,9.69e-05,2]
[422245421,1778762961000,1750.0,0.0001183,5]
[422245422,1778762983000,5000.0,0.00010011,2]
[422245424,1778762990000,1448495.84147933,0.0001001,2]
[422245423,1778762990000,51504.15852067,0.0001001,2]
[422245425,1778763006000,5863.59398004,0.0001001,2]
[422245426,1778763006000,2797.75145207,0.0001001,2]
[422245427,1778763006000,2831.98093941,0.0001001,2]
[422245428,1778763030000,200.0,9.716e-05,2]
[422245453,1778763031000,-500.0,0.0001011,2]
[422245452,1778763031000,-500.0,0.0001011,2]
[422245451,1778763031000,-500.0,0.0001011,2]
[422245450,1778763031000,-500.0,0.0001011,2]
[422245449,1778763031000,-500.0,0.0001011,2]
[422245446,1778763031000,-500.0,0.0001011,2]
[422245448,1778763031000,-500.0,0.0001011,2]
[422245447,1778763031000,-500.0,0.0001011,2]
[422245445,1778763031000,-500.0,0.0001011,2]
[422245444,1778763031000,-500.0,0.0001011,2]
[422245443,1778763031000,-500.0,0.0001011,2]
[422245441,1778763031000,-500.0,0.0001011,2]
[422245434,1778763031000,-250.0,0.00010068,2]
[422245440,1778763031000,-500.0,0.0001011,2]
[422245437,1778763031000,-500.0,0.0001011,2]
[422245439,1778763031000,-500.0,0.0001011,2]
[422245438,1778763031000,-373.11077395,0.0001011,2]
[422245436,1778763031000,-1200.0,0.00010109,2]
[422245432,1778763031000,-272.85816359,0.00010027,2]
[422245435,1778763031000,-150.0,0.00010109,2]
[422245454,1778763031000,-500.0,0.0001011,2]
[422245433,1778763031000,-561.4437544,0.00010048,2]
[422245431,1778763031000,-457.24022354,0.00010027,2]
[422245430,1778763031000,-258.87161287,0.00010027,2]
[422245442,1778763031000,-500.0,0.0001011,2]
[422245456,1778763031000,-500.0,0.0001011,2]
[422245487,1778763031000,-224.88904933,0.0001011,2]
[422245455,1778763031000,-500.0,0.0001011,2]
[422245495,1778763031000,-534.53243871,0.0001011,2]
[422245464,1778763031000,-500.0,0.0001011,2]
[422245497,1778763031000,-534.53243871,0.0001011,2]
[422245499,1778763031000,-534.53243871,0.0001011,2]
[422245493,1778763031000,-500.0,0.0001011,2]
[422245489,1778763031000,-500.0,0.0001011,2]
[422245491,1778763031000,-516.60882709,0.0001011,2]
[422245485,1778763031000,-500.0,0.0001011,2]
[422245475,1778763031000,-500.0,0.0001011,2]
[422245483,1778763031000,-500.0,0.0001011,2]
[422245477,1778763031000,-500.0,0.0001011,2]
[422245480,1778763031000,-500.0,0.0001011,2]
[422245498,1778763031000,-534.53243871,0.0001011,2]
[422245473,1778763031000,-500.0,0.0001011,2]
[422245471,1778763031000,-500.0,0.0001011,2]
[422245457,1778763031000,-500.0,0.0001011,2]
[422245462,1778763031000,-500.0,0.0001011,2]
[422245459,1778763031000,-500.0,0.0001011,2]
[422245461,1778763031000,-500.0,0.0001011,2]
[422245458,1778763031000,-500.0,0.0001011,2]
[422245463,1778763031000,-500.0,0.0001011,2]
[422245467,1778763031000,-500.0,0.0001011,2]
[422245465,1778763031000,-500.0,0.0001011,2]
[422245469,1778763031000,-500.0,0.0001011,2]
[422245460,1778763031000,-500.0,0.0001011,2]
[422245522,1778763032000,-534.53243871,0.0001011,2]
[422245510,1778763032000,-534.53243871,0.0001011,2]
[422245520,1778763032000,-534.53243871,0.0001011,2]
[422245518,1778763032000,-534.53243871,0.0001011,2]
[422245519,1778763032000,-534.53243871,0.0001011,2]
[422245516,1778763032000,-534.53243871,0.0001011,2]
[422245514,1778763032000,-534.53243871,0.0001011,2]
[422245515,1778763032000,-534.53243871,0.0001011,2]
[422245513,1778763032000,-534.53243871,0.0001011,2]
[422245512,1778763032000,-534.53243871,0.0001011,2]
[422245505,1778763032000,-534.53243871,0.0001011,2]
[422245509,1778763032000,-534.53243871,0.0001011,2]
[422245508,1778763032000,-534.53243871,0.0001011,2]
[422245507,1778763032000,-534.53243871,0.0001011,2]
[422245506,1778763032000,-534.53243871,0.0001011,2]
[422245501,1778763032000,-534.53243871,0.0001011,2]
[422245503,1778763032000,-534.53243871,0.0001011,2]
[422245504,1778763032000,-534.53243871,0.0001011,2]
[422245502,1778763032000,-534.53243871,0.0001011,2]
[422245500,1778763032000,-534.53243871,0.0001011,2]
[422245523,1778763032000,-534.53243871,0.0001011,2]
[422245511,1778763032000,-534.53243871,0.0001011,2]
[422245524,1778763032000,-534.53243871,0.0001011,2]
[422245517,1778763032000,-534.53243871,0.0001011,2]
[422245527,1778763032000,-534.53243871,0.0001011,2]
[422245526,1778763032000,-534.53243871,0.0001011,2]
[422245554,1778763032000,-2466.66666668,0.0001011,2]
[422245545,1778763032000,-524.5754619,0.0001011,2]
[422245544,1778763032000,-524.5754619,0.0001011,2]
[422245540,1778763032000,-524.5754619,0.0001011,2]
[422245537,1778763032000,-524.5754619,0.0001011,2]
[422245533,1778763032000,-524.5754619,0.0001011,2]
[422245541,1778763032000,-524.5754619,0.0001011,2]
[422245536,1778763032000,-524.5754619,0.0001011,2]
[422245542,1778763032000,-524.5754619,0.0001011,2]
[422245539,1778763032000,-524.5754619,0.0001011,2]
[422245543,1778763032000,-524.5754619,0.0001011,2]
[422245538,1778763032000,-524.5754619,0.0001011,2]
[422245534,1778763032000,-524.5754619,0.0001011,2]
[422245525,1778763032000,-534.53243871,0.0001011,2]
[422245529,1778763032000,-534.53243871,0.0001011,2]
[422245521,1778763032000,-534.53243871,0.0001011,2]
[422245528,1778763032000,-534.53243871,0.0001011,2]
[422245530,1778763032000,-534.53243871,0.0001011,2]
[422245532,1778763032000,-524.5754619,0.0001011,2]
[422245531,1778763032000,-524.5754619,0.0001011,2]
[422245535,1778763032000,-524.5754619,0.0001011,2]
[422245553,1778763032000,-974.33281055,0.0001011,2]
[422245575,1778763039000,-5954.28926261,0.00010111,2]
[422245574,1778763039000,-524.5754619,0.0001011,2]
[422245595,1778763041000,-988.97,0.00010529,2]
[422245599,1778763041000,-151.0,0.000107,2]
[422245594,1778763041000,-511630.3687352,0.00010518,2]
[422245596,1778763041000,-151.0,0.00010697,2]
[422245598,1778763041000,-1206302.38117268,0.000107,2]
[422245604,1778763041000,-584.087981,0.000107,2]
[422245601,1778763041000,-584.087981,0.000107,2]
[422245600,1778763041000,-151.0,0.000107,2]
[422245603,1778763041000,-584.087981,0.000107,2]
[422245602,1778763041000,-584.087981,0.000107,2]
[422245606,1778763041000,-839.370064,0.000107,2]
[422245591,1778763041000,-142116.6336544,0.00010498,2]
[422245597,1778763041000,-186.4,0.00010697,2]
[422245592,1778763041000,-9489.0025835,0.00010498,2]
[422245578,1778763041000,-1448.753425,0.00010111,2]
[422245590,1778763041000,-11288.0203103,0.00010498,2]
[422245588,1778763041000,-15347.8648064,0.00010498,2]
[422245586,1778763041000,-243.2,0.00010321,2]
[422245583,1778763041000,-11442.1068,0.00010211,2]
[422245585,1778763041000,-988.97,0.00010278,2]
[422245584,1778763041000,-262.0,0.0001023,2]
[422245581,1778763041000,-150.0,0.00010129,2]
[422245582,1778763041000,-563.54,0.0001021,2]
[422245580,1778763041000,-102538.28827609,0.00010111,2]
[422245579,1778763041000,-629.64703261,0.00010111,2]
[422245620,1778763041000,-8778.86230419,0.000109,2]
[422245577,1778763041000,-400.765,0.00010111,2]
[422245576,1778763041000,-2200255.52273632,0.00010111,2]
[422245589,1778763041000,-859.8368472,0.00010498,2]
[422245616,1778763041000,-2000.0,0.00010781,2]
[422245587,1778763041000,-1277.21621014,0.00010429,2]
[422245608,1778763041000,-839.370064,0.000107,2]
[422245666,1778763041000,-16349.98002433,0.00011099,2]
[422245665,1778763041000,-16349.98002433,0.00011099,2]
[422245662,1778763041000,-300.0,0.00011098,2]
[422245664,1778763041000,-16349.98002435,0.00011099,2]
[422245661,1778763041000,-300.0,0.00011098,2]
[422245663,1778763041000,-195.85268885,0.00011098,2]
[422245656,1778763041000,-187.77481468,0.0001103,2]
[422245659,1778763041000,-151.0,0.00011096,2]
[422245610,1778763041000,-839.370064,0.000107,2]
[422245654,1778763041000,-500.0,0.0001103,2]
[422245651,1778763041000,-250.0,0.0001103,2]
[422245652,1778763041000,-334.22796898,0.0001103,2]
[422245649,1778763041000,-250.0,0.0001103,2]
[422245638,1778763041000,-150.0,0.00010989,2]
[422245658,1778763041000,-1493.18231591,0.0001103,2]
[422245637,1778763041000,-151.0,0.00010959,2]
[422245635,1778763041000,-4540.63,0.00010959,2]
[422245614,1778763041000,-988.97,0.00010779,2]
[422245612,1778763041000,-839.370064,0.000107,2]
[422245624,1778763041000,-151.0,0.00010959,2]
[422245622,1778763041000,-166.11,0.00010927,2]
[422245626,1778763041000,-151.0,0.00010959,2]
[422245618,1778763041000,-500.0,0.00010795,2]
[422245630,1778763041000,-150.0,0.00010959,2]
[422245641,1778763041000,-150.0,0.00010989,2]
[422245645,1778763041000,-8376.41951269,0.00011,2]
[422245647,1778763041000,-988.97,0.0001103,2]